fUST/lending_fUST_20250702
["ID","MTS","AMOUNT","RATE_DAILY","PERIOD"]
[369045242,1751443861078,-460.0,0.0001863,2]
[369045243,1751443861087,-388.59427715,0.0001863,2]
[369045244,1751443861097,-151.0,0.0001863,2]
[369045245,1751443861107,-515.26,0.0001863,2]
[369045246,1751443861116,-722.43,0.0001863,2]
[369045247,1751443861125,-460.0,0.0001863,2]
[369045248,1751443861135,-460.0,0.0001863,2]
[369045249,1751443861145,-659.03,0.0001863,2]
[369045250,1751443861155,-709.32,0.0001863,2]
[369045251,1751443861164,-1153.43,0.0001863,2]
[369045252,1751443861174,-547.81,0.0001863,2]
[369045253,1751443861184,-1284.04,0.0001863,2]
[369045254,1751443861194,-2203.89,0.0001863,2]
[369045255,1751443861203,-460.0,0.0001863,2]
[369045256,1751443861213,-340.740744,0.0001863,2]
[369045257,1751443861224,-693.55,0.0001863,2]
[369045258,1751443861234,-936.841096,0.0001863,2]
[369045259,1751443861244,-599.35,0.0001863,2]
[369045260,1751443861254,-460.0,0.0001863,2]
[369045261,1751443861264,-340.740744,0.0001863,2]
[369045262,1751443861274,-936.841096,0.0001863,2]
[369045263,1751443861284,-7054.28,0.0001863,2]
[369045264,1751443861293,-2135.01,0.0001863,2]
[369045265,1751443861303,-644.54,0.0001863,2]
[369045266,1751443861312,-460.0,0.0001863,2]
[369045267,1751443861322,-460.0,0.0001863,2]
[369045268,1751443861331,-151.0,0.0001863,2]
[369045269,1751443861341,-678.82,0.0001863,2]
[369045270,1751443861350,-151.0,0.0001863,2]
[369045271,1751443861360,-863.54,0.0001863,2]
[369045272,1751443861369,-698.04941,0.0001863,2]
[369045273,1751443861378,-151.0,0.0001863,2]
[369045274,1751443861387,-1564.8,0.0001863,2]
[369045275,1751443861397,-652.57,0.0001863,2]
[369045276,1751443861406,-698.04941,0.0001863,2]
[369045277,1751443861416,-750.41,0.0001863,2]
[369045278,1751443861425,-460.0,0.0001863,2]
[369045279,1751443861435,-460.0,0.0001863,2]
[369045280,1751443861444,-586.48,0.0001863,2]
[369045281,1751443861454,-4867.25,0.0001863,2]
[369045282,1751443861463,-159.3697675,0.0001863,2]
[369045283,1751443861473,-153.0,0.0001863,2]
[369045284,1751443861482,-1151.195334,0.0001863,2]
[369045285,1751443861491,-306.0,0.0001863,2]
[369045287,1751443861501,-356.4593755,0.0001863,2]
[369045289,1751443861510,-153.0,0.0001863,2]
[369045291,1751443861519,-318.6150683,0.0001863,2]
[369045293,1751443861530,-1151.0079039,0.0001863,2]
[369045295,1751443861540,-153.0,0.0001863,2]
[369045297,1751443861549,-177.6255604,0.0001863,2]
[369045298,1751443861558,-153.0,0.0001863,2]
[369045299,1751443861568,-575.597667,0.0001863,2]
[369045300,1751443861577,-153.0,0.0001863,2]
[369045301,1751443861586,-153.0,0.0001863,2]
[369045302,1751443861595,-177.6255604,0.0001863,2]
[369045303,1751443861605,-153.0,0.0001863,2]
[369045304,1751443861614,-575.597667,0.0001863,2]
[369045305,1751443861623,-313.9478238,0.0001863,2]
[369045306,1751443861632,-355.193304,0.0001863,2]
[369045307,1751443861641,-1151.0079039,0.0001863,2]
[369045308,1751443861651,-177.6255604,0.0001863,2]
[369045309,1751443861660,-575.597667,0.0001863,2]
[369045310,1751443861669,-339.2870042,0.0001863,2]
[369045311,1751443861678,-780.0,0.00018631,2]
[369045312,1751443861687,-2500.0,0.00018664,2]
[369045313,1751443861697,-2500.0,0.00018664,2]
[369045314,1751443861706,-780.0,0.0001868,2]
[369045315,1751443861715,-780.0,0.00018694,2]
[369045316,1751443861724,-780.0,0.00018699,2]
[369045317,1751443861734,-780.0,0.00018703,2]
[369045318,1751443861743,-499.0,0.00018731,2]
[369045319,1751443861753,-780.0,0.00018746,2]
[369045320,1751443861762,-780.0,0.00018778,2]
[369045321,1751443861772,-780.0,0.00018787,2]
[369045322,1751443861782,-723.66067447,0.00018827,2]
[369045323,1751443861792,-1091.0,0.00018899,2]
[369045324,1751443861801,-151.0,0.00018904,2]
[369045325,1751443861810,-151.0,0.00018904,2]
[369045326,1751443861820,-151.0,0.00018904,2]
[369045327,1751443861829,-151.0,0.00018904,2]
[369045328,1751443861838,-151.0,0.00018904,2]
[369045329,1751443861849,-151.0,0.00018904,2]
[369045330,1751443861859,-460.0,0.00018904,2]
[369045331,1751443861868,-151.0,0.00018904,2]
[369045332,1751443861877,-197.340509,0.00018904,2]
[369045333,1751443861887,-151.0,0.00018904,2]
[369045334,1751443862011,-252.063536,0.00018904,2]
[369045335,1751443862021,-151.0,0.00018904,2]
[369045336,1751443862031,-460.0,0.00018904,2]
[369045337,1751443862040,-151.0,0.00018904,2]
[369045338,1751443862049,-377.578523,0.00018904,2]
[369045339,1751443862059,-377.578523,0.00018904,2]
[369045340,1751443862068,-151.0,0.00018904,2]
[369045341,1751443862078,-239.905057,0.00018904,2]
[369045342,1751443862087,-239.905057,0.00018904,2]
[369045343,1751443862096,-151.0,0.00018904,2]
[369045344,1751443862105,-460.0,0.00018904,2]
[369045345,1751443862115,-460.0,0.00018904,2]
[369045346,1751443862124,-151.0,0.00018904,2]
[369045347,1751443862133,-490.476994,0.00018904,2]
[369045348,1751443862143,-490.476994,0.00018904,2]
[369045349,1751443862152,-794.32,0.00018904,2]
[369045350,1751443862161,-468.54,0.00018904,2]
[369045351,1751443862171,-460.0,0.00018904,2]
[369045352,1751443862180,-850.98,0.00018904,2]
[369045353,1751443862190,-460.0,0.00018904,2]
[369045354,1751443862199,-460.0,0.00018904,2]
[369045355,1751443862208,-568.63,0.00018904,2]
[369045356,1751443862218,-151.0,0.00018904,2]
[369045357,1751443862227,-460.0,0.00018904,2]
[369045358,1751443862237,-151.0,0.00018904,2]
[369045359,1751443862246,-460.0,0.00018904,2]
[369045360,1751443862255,-461.05478975,0.00018904,2]
[369045361,1751443862264,-151.0,0.00018904,2]
[369045362,1751443862275,-460.0,0.00018904,2]
[369045363,1751443862284,-468.158223,0.00018904,2]
[369045364,1751443862294,-468.158223,0.00018904,2]
[369045365,1751443862303,-460.0,0.00018904,2]
[369045366,1751443862313,-460.0,0.00018904,2]
[369045367,1751443862322,-835.56,0.00018904,2]
[369045368,1751443862331,-151.0,0.00018904,2]
[369045369,1751443862340,-151.0,0.00018904,2]
[369045370,1751443862350,-768.71,0.00018904,2]
[369045371,1751443862359,-151.0,0.00018904,2]
[369045372,1751443862368,-460.0,0.00018904,2]
[369045373,1751443862377,-460.0,0.00018904,2]
[369045374,1751443862386,-535.08,0.00018904,2]
[369045375,1751443862396,-460.0,0.00018904,2]
[369045376,1751443862406,-1879.38,0.00018904,2]
[369045377,1751443862415,-1637.15,0.00018904,2]
[369045378,1751443862424,-460.0,0.00018904,2]
[369045379,1751443862434,-460.0,0.00018904,2]
[369045380,1751443862443,-258.605202,0.00018904,2]
[369045381,1751443862453,-258.605202,0.00018904,2]
[369045382,1751443862462,-1010.49,0.00018904,2]
[369045383,1751443862471,-1289.25,0.00018904,2]
[369045384,1751443862480,-1075.42,0.00018904,2]
[369045385,1751443862489,-1429.84,0.00018904,2]
[369045387,1751443862499,-645.44,0.00018904,2]
[369045389,1751443862508,-3279.83,0.00018904,2]
[369045391,1751443862518,-845.66,0.00018904,2]
[369045393,1751443862527,-460.0,0.00018904,2]
[369045394,1751443862536,-3040.19,0.00018904,2]
[369045396,1751443862545,-5322.34,0.00018904,2]
[369045398,1751443862554,-460.0,0.00018904,2]
[369045399,1751443862564,-532.43,0.00018904,2]
[369045400,1751443862573,-882.43,0.00018904,2]
[369045401,1751443862583,-635.2,0.00018904,2]
[369045402,1751443862592,-460.0,0.00018904,2]
[369045403,1751443862602,-600.73,0.00018904,2]
[369045404,1751443862611,-460.0,0.00018904,2]
[369045405,1751443862620,-460.0,0.00018904,2]
[369045406,1751443862629,-460.0,0.00018904,2]
[369045407,1751443862639,-591.46600374,0.00018904,2]
[369045408,1751443862648,-500.1,0.00018904,2]
[369045409,1751443862657,-881.02,0.00018904,2]
[369045410,1751443862666,-623.2,0.00018904,2]
[369045411,1751443862675,-460.0,0.00018904,2]
[369045412,1751443862684,-1471.72,0.00018904,2]
[369045413,1751443862693,-934.62,0.00018904,2]
[369045414,1751443862702,-1564.84,0.00018904,2]
[369045415,1751443862712,-460.0,0.00018904,2]
[369045416,1751443862721,-2631.81,0.00018904,2]
[369045417,1751443862730,-460.0,0.00018904,2]
[369045418,1751443862739,-460.0,0.00018904,2]
[369045419,1751443862748,-151.0,0.00018904,2]
[369045420,1751443862758,-3305.11,0.00018904,2]
[369045421,1751443862767,-2728.27,0.00018904,2]
[369045422,1751443862777,-849.36,0.00018904,2]
[369045423,1751443862787,-460.0,0.00018904,2]
[369045424,1751443862796,-460.0,0.00018904,2]
[369045425,1751443862806,-615.95,0.00018904,2]
[369045426,1751443862815,-845.22,0.00018904,2]
[369045427,1751443862824,-594.16,0.00018904,2]
[369045428,1751443862833,-460.0,0.00018904,2]
[369045429,1751443862843,-151.0,0.00018904,2]
[369045430,1751443862853,-515.26,0.00018904,2]
[369045431,1751443862862,-722.43,0.00018904,2]
[369045432,1751443862872,-460.0,0.00018904,2]
[369045433,1751443862881,-460.0,0.00018904,2]
[369045434,1751443862890,-659.03,0.00018904,2]
[369045435,1751443862900,-709.32,0.00018904,2]
[369045436,1751443862910,-1153.43,0.00018904,2]
[369045437,1751443862920,-547.81,0.00018904,2]
[369045438,1751443862930,-1284.04,0.00018904,2]
[369045439,1751443862940,-2203.89,0.00018904,2]
[369045440,1751443862949,-460.0,0.00018904,2]
[369045441,1751443862959,-693.55,0.00018904,2]
[369045442,1751443862969,-460.0,0.00018904,2]
[369045443,1751443862980,-7054.28,0.00018904,2]
[369045444,1751443862991,-2135.01,0.00018904,2]
[369045445,1751443863002,-644.54,0.00018904,2]
[369045446,1751443863012,-460.0,0.00018904,2]
[369045447,1751443863024,-460.0,0.00018904,2]
[369045448,1751443863033,-151.0,0.00018904,2]
[369045449,1751443863043,-678.82,0.00018904,2]
[369045450,1751443863053,-151.0,0.00018904,2]
[369045451,1751443863063,-863.54,0.00018904,2]
[369045452,1751443863073,-698.04941,0.00018904,2]
[369045453,1751443863083,-1564.8,0.00018904,2]
[369045454,1751443863092,-698.04941,0.00018904,2]
[369045455,1751443863102,-652.57,0.00018904,2]
[369045456,1751443863112,-750.41,0.00018904,2]
[369045457,1751443863121,-460.0,0.00018904,2]
[369045458,1751443863130,-460.0,0.00018904,2]
[369045459,1751443863140,-586.48,0.00018904,2]
[369045460,1751443863150,-4867.25,0.00018904,2]
[369045461,1751443863160,-1091.0,0.0001894,2]
[369045462,1751443863169,-151.0,0.0001894,2]
[369045463,1751443863179,-340.740744,0.0001894,2]
[369045464,1751443863189,-936.841096,0.0001894,2]
[369045465,1751443863199,-936.841096,0.0001894,2]
[369045466,1751443863208,-340.740744,0.0001894,2]
[369045467,1751443863218,-5000.0,0.00019168,2]
[369045468,1751443863227,-262.228203,0.00019178,2]
[369045469,1751443863236,-262.228203,0.00019178,2]
[369045470,1751443863246,-151.0,0.00019178,2]
[369045471,1751443863255,-151.0,0.00019178,2]
[369045472,1751443863264,-151.0,0.00019178,2]
[369045473,1751443863274,-151.0,0.00019178,2]
[369045474,1751443863284,-151.0,0.00019178,2]
[369045475,1751443863294,-239.394205,0.00019178,2]
[369045476,1751443863304,-239.394205,0.00019178,2]
[369045477,1751443863314,-273.177028,0.00019178,2]
[369045478,1751443863323,-273.177028,0.00019178,2]
[369045479,1751443863332,-151.0,0.00019178,2]
[369045480,1751443863341,-182.553769,0.00019178,2]
[369045481,1751443863351,-182.553769,0.00019178,2]
[369045482,1751443863361,-460.0,0.00019178,2]
[369045483,1751443863370,-151.0,0.00019178,2]
[369045484,1751443863380,-336.306551,0.00019178,2]
[369045485,1751443863390,-336.306551,0.00019178,2]
[369045486,1751443863399,-151.0,0.00019178,2]
[369045487,1751443863409,-151.0,0.00019178,2]
[369045488,1751443863419,-151.0,0.00019178,2]
[369045489,1751443863429,-460.0,0.00019178,2]
[369045490,1751443863438,-151.0,0.00019178,2]
[369045491,1751443863448,-378.867334,0.00019178,2]
[369045492,1751443863458,-378.867334,0.00019178,2]
[369045493,1751443863467,-377.578523,0.00019178,2]
[369045494,1751443863476,-377.578523,0.00019178,2]
[369045495,1751443863486,-151.0,0.00019178,2]
[369045496,1751443863495,-151.0,0.00019178,2]
[369045497,1751443863506,-1500.0,0.00019178,7]
[369045498,1751443863515,-478.589666,0.00019178,7]
[369045499,1751443863525,-239.905057,0.00019178,2]
[369045500,1751443863534,-465.451048,0.00019178,2]
[369045501,1751443863544,-465.451048,0.00019178,2]
[369045502,1751443863553,-239.905057,0.00019178,2]
[369045503,1751443863562,-465.451048,0.00019178,2]
[369045504,1751443863572,-465.451048,0.00019178,2]
[369045505,1751443863583,-151.0,0.00019178,2]
[369045506,1751443863592,-460.0,0.00019178,2]
[369045507,1751443863602,-460.0,0.00019178,2]
[369045508,1751443863612,-151.0,0.00019178,2]
[369045509,1751443863622,-490.476994,0.00019178,2]
[369045510,1751443863631,-490.476994,0.00019178,2]
[369045511,1751443863641,-794.32,0.00019178,2]
[369045512,1751443863650,-468.54,0.00019178,2]
[369045513,1751443863660,-213.002438,0.00019178,2]
[369045514,1751443863669,-213.002438,0.00019178,2]
[369045515,1751443863679,-213.002438,0.00019178,2]
[369045516,1751443863688,-213.002438,0.00019178,2]
[369045517,1751443863698,-460.0,0.00019178,2]
[369045518,1751443863708,-1579.607331,0.00019178,2]
[369045519,1751443863718,-1579.607331,0.00019178,2]
[369045520,1751443863728,-850.98,0.00019178,2]
[369045521,1751443863738,-460.0,0.00019178,2]
[369045522,1751443863748,-1579.607331,0.00019178,2]
[369045523,1751443863758,-1579.607331,0.00019178,2]
[369045524,1751443863768,-460.0,0.00019178,2]
[369045525,1751443863779,-568.63,0.00019178,2]
[369045526,1751443863788,-151.0,0.00019178,2]
[369045527,1751443863798,-460.0,0.00019178,2]
[369045528,1751443863809,-151.0,0.00019178,2]
[369045529,1751443863819,-460.0,0.00019178,2]
[369045530,1751443863828,-151.0,0.00019178,2]
[369045531,1751443863838,-460.0,0.00019178,2]
[369045532,1751443863848,-468.158223,0.00019178,2]
[369045533,1751443863858,-468.158223,0.00019178,2]
[369045534,1751443863867,-151.0,0.00019178,2]
[369045535,1751443863877,-151.0,0.00019178,2]
[369045536,1751443863887,-151.0,0.00019178,2]
[369045537,1751443863896,-151.0,0.00019178,2]
[369045538,1751443863906,-460.0,0.00019178,2]
[369045539,1751443863915,-151.0,0.00019178,2]
[369045540,1751443863925,-153.914341,0.00019178,2]
[369045541,1751443863934,-460.0,0.00019178,2]
[369045542,1751443863944,-835.56,0.00019178,2]
[369045543,1751443863953,-151.0,0.00019178,2]
[369045544,1751443863963,-768.71,0.00019178,2]
[369045545,1751443863973,-151.0,0.00019178,2]
[369045546,1751443863986,-460.0,0.00019178,2]
[369045547,1751443863995,-460.0,0.00019178,2]
[369045548,1751443864005,-535.08,0.00019178,2]
[369045549,1751443864015,-151.0,0.00019178,2]
[369045550,1751443864025,-460.0,0.00019178,2]
[369045551,1751443864035,-1879.38,0.00019178,2]
[369045552,1751443864044,-1637.15,0.00019178,2]
[369045553,1751443864054,-460.0,0.00019178,2]
[369045554,1751443864065,-460.0,0.00019178,2]
[369045555,1751443864074,-258.605202,0.00019178,2]
[369045556,1751443864084,-258.605202,0.00019178,2]
[369045557,1751443864093,-1010.49,0.00019178,2]
[369045558,1751443864102,-1289.25,0.00019178,2]
[369045559,1751443864112,-1075.42,0.00019178,2]
[369045560,1751443864121,-1429.84,0.00019178,2]
[369045561,1751443864131,-645.44,0.00019178,2]
[369045562,1751443864140,-3279.83,0.00019178,2]
[369045563,1751443864150,-845.66,0.00019178,2]
[369045564,1751443864159,-460.0,0.00019178,2]
[369045565,1751443864168,-3040.19,0.00019178,2]
[369045566,1751443864178,-5322.34,0.00019178,2]
[369045567,1751443864188,-460.0,0.00019178,2]
[369045568,1751443864198,-532.43,0.00019178,2]
[369045569,1751443864207,-882.43,0.00019178,2]
[369045570,1751443864217,-635.2,0.00019178,2]
[369045571,1751443864227,-460.0,0.00019178,2]
[369045572,1751443864237,-600.73,0.00019178,2]
[369045573,1751443864246,-460.0,0.00019178,2]
[369045574,1751443864255,-460.0,0.00019178,2]
[369045575,1751443864265,-460.0,0.00019178,2]
[369045576,1751443864274,-500.1,0.00019178,2]
[369045577,1751443864284,-881.02,0.00019178,2]
[369045578,1751443864293,-623.2,0.00019178,2]
[369045579,1751443864303,-460.0,0.00019178,2]
[369045580,1751443864313,-1471.72,0.00019178,2]
[369045581,1751443864322,-934.62,0.00019178,2]
[369045582,1751443864332,-1564.84,0.00019178,2]
[369045583,1751443864342,-460.0,0.00019178,2]
[369045584,1751443864351,-2631.81,0.00019178,2]
[369045585,1751443864360,-460.0,0.00019178,2]
[369045586,1751443864370,-186.21259259,0.00019178,2]
[369045587,1751443864380,-151.0,0.00019178,2]
[369045588,1751443864389,-3305.11,0.00019178,2]
[369045589,1751443864398,-2728.27,0.00019178,2]
[369045590,1751443864407,-849.36,0.00019178,2]
[369045591,1751443864527,-460.0,0.00019178,2]
[369045592,1751443864537,-460.0,0.00019178,2]
[369045593,1751443864546,-615.95,0.00019178,2]
[369045594,1751443864556,-845.22,0.00019178,2]
[369045595,1751443864565,-594.16,0.00019178,2]
[369045596,1751443864575,-540.0,0.00019178,2]
[369045597,1751443864585,-151.0,0.00019178,2]
[369045598,1751443864594,-515.26,0.00019178,2]
[369045599,1751443864603,-722.43,0.00019178,2]
[369045600,1751443864613,-460.0,0.00019178,2]
[369045601,1751443864622,-460.0,0.00019178,2]
[369045602,1751443864632,-659.03,0.00019178,2]
[369045603,1751443864640,-709.32,0.00019178,2]
[369045604,1751443864650,-1153.43,0.00019178,2]
[369045605,1751443864659,-547.81,0.00019178,2]
[369045606,1751443864668,-1284.04,0.00019178,2]
[369045607,1751443864677,-2203.89,0.00019178,2]
[369045608,1751443864687,-269.85755213,0.00019178,2]
[369045609,1751443864697,-340.740744,0.00019178,2]
[369045610,1751443864707,-693.55,0.00019178,2]
[369045611,1751443864716,-936.841096,0.00019178,2]
[369045612,1751443864726,-335.60995805,0.00019178,2]
[369045613,1751443864735,-936.841096,0.00019178,2]
[369045614,1751443864744,-340.740744,0.00019178,2]
[369045615,1751443864754,-7054.28,0.00019178,2]
[369045616,1751443864764,-2135.01,0.00019178,2]
[369045617,1751443864774,-644.54,0.00019178,2]
[369045618,1751443864783,-460.0,0.00019178,2]
[369045619,1751443864793,-460.0,0.00019178,2]
[369045620,1751443864804,-161.434746,0.00019178,2]
[369045621,1751443864813,-678.82,0.00019178,2]
[369045622,1751443864823,-151.0,0.00019178,2]
[369045623,1751443864833,-863.54,0.00019178,2]
[369045624,1751443864843,-698.04941,0.00019178,2]
[369045625,1751443864852,-1564.8,0.00019178,2]
[369045626,1751443864862,-698.04941,0.00019178,2]
[369045627,1751443864872,-652.57,0.00019178,2]
[369045628,1751443864881,-750.41,0.00019178,2]
[369045629,1751443864891,-460.0,0.00019178,2]
[369045630,1751443864901,-460.0,0.00019178,2]
[369045631,1751443864910,-586.48,0.00019178,2]
[369045632,1751443864920,-4867.25,0.00019178,2]
[369045633,1751443864929,-432.041989,0.00019178,2]
[369045634,1751443864940,-55096.8133402,0.00019178,2]
[369045635,1751443864950,-3000.0,0.00019212,2]
[369045636,1751443864960,-2609.43349894,0.00019212,2]
[369045637,1751443864972,-3000.0,0.00019214,2]
[369045638,1751443864984,-262.228203,0.00019329,2]
[369045639,1751443864993,-262.228203,0.00019329,2]
[369045640,1751443865003,-151.0,0.00019329,2]
[369045641,1751443865012,-239.394205,0.00019329,2]
[369045642,1751443865022,-239.394205,0.00019329,2]
[369045643,1751443865032,-273.177028,0.00019329,2]
[369045644,1751443865041,-273.177028,0.00019329,2]
[369045645,1751443865050,-182.553769,0.00019329,2]
[369045646,1751443865061,-182.553769,0.00019329,2]
[369045647,1751443865070,-336.306551,0.00019329,2]
[369045648,1751443865080,-336.306551,0.00019329,2]
[369045649,1751443865089,-151.0,0.00019329,2]
[369045650,1751443865098,-378.867334,0.00019329,2]
[369045651,1751443865107,-378.867334,0.00019329,2]
[369045652,1751443865117,-151.0,0.00019329,2]
[369045653,1751443865125,-239.905057,0.00019329,2]
[369045654,1751443865135,-239.905057,0.00019329,2]
[369045655,1751443865145,-151.0,0.00019329,2]
[369045656,1751443865155,-151.0,0.00019329,2]
[369045657,1751443865164,-180.837037,0.00019329,2]
[369045658,1751443865174,-258.605202,0.00019329,2]
[369045659,1751443865184,-258.605202,0.00019329,2]
[369045660,1751443865193,-151.0,0.00019329,2]
[369045661,1751443865202,-698.04941,0.00019329,2]
[369045662,1751443865212,-698.04941,0.00019329,2]
[369045663,1751443865222,-48224.83153581,0.00019329,2]
[369045664,1751443865231,-640.0,0.000194,2]
[369045665,1751443865241,-151.0,0.0001944,2]
[369045666,1751443865250,-468.158223,0.0001944,2]
[369045667,1751443865259,-468.158223,0.0001944,2]
[369045668,1751443865269,-151.0,0.00019452,2]
[369045669,1751443865278,-458.0,0.00019452,2]
[369045670,1751443865287,-460.0,0.00019452,2]
[369045671,1751443865297,-151.0,0.00019452,2]
[369045672,1751443865306,-460.0,0.00019452,2]
[369045673,1751443865315,-151.0,0.00019452,2]
[369045674,1751443865324,-151.0,0.00019452,2]
[369045675,1751443865334,-465.451048,0.00019452,2]
[369045676,1751443865344,-465.451048,0.00019452,2]
[369045677,1751443865353,-460.0,0.00019452,2]
[369045678,1751443865362,-460.0,0.00019452,2]
[369045679,1751443865372,-151.0,0.00019452,2]
[369045680,1751443865382,-490.476994,0.00019452,2]
[369045681,1751443865392,-490.476994,0.00019452,2]
[369045682,1751443865401,-794.32,0.00019452,2]
[369045683,1751443865410,-468.54,0.00019452,2]
[369045684,1751443865419,-213.002438,0.00019452,2]
[369045685,1751443865429,-213.002438,0.00019452,2]
[369045686,1751443865439,-460.0,0.00019452,2]
[369045687,1751443865448,-850.98,0.00019452,2]
[369045688,1751443865457,-1579.607331,0.00019452,2]
[369045689,1751443865466,-460.0,0.00019452,2]
[369045690,1751443865476,-1579.607331,0.00019452,2]
[369045691,1751443865485,-460.55661388,0.00019452,2]
[369045692,1751443865494,-568.63,0.00019452,2]
[369045693,1751443865504,-151.0,0.00019452,2]
[369045694,1751443865513,-460.0,0.00019452,2]
[369045695,1751443865523,-157.570412,0.00019452,2]
[369045696,1751443865532,-460.0,0.00019452,2]
[369045697,1751443865541,-460.0,0.00019452,2]
[369045698,1751443865551,-151.0,0.00019452,2]
[369045699,1751443865560,-200.620915,0.00019452,2]
[369045700,1751443865570,-460.0,0.00019452,2]
[369045701,1751443865579,-460.0,0.00019452,2]
[369045702,1751443865589,-835.56,0.00019452,2]
[369045703,1751443865598,-768.71,0.00019452,2]
[369045704,1751443865608,-460.0,0.00019452,2]
[369045705,1751443865617,-460.0,0.00019452,2]
[369045706,1751443865626,-535.08,0.00019452,2]
[369045707,1751443865636,-151.0,0.00019452,2]
[369045708,1751443865650,-460.0,0.00019452,2]
[369045709,1751443865666,-1879.38,0.00019452,2]
[369045710,1751443865683,-1637.15,0.00019452,2]
[369045711,1751443865694,-460.0,0.00019452,2]
[369045712,1751443865709,-221.31164709,0.00019452,2]
[369045713,1751443865723,-1010.49,0.00019452,2]
[369045714,1751443865738,-1289.25,0.00019452,2]
[369045715,1751443865751,-1075.42,0.00019452,2]
[369045716,1751443865767,-1429.84,0.00019452,2]
[369045717,1751443865782,-645.44,0.00019452,2]
[369045718,1751443865797,-3279.83,0.00019452,2]
[369045719,1751443865811,-845.66,0.00019452,2]
[369045720,1751443865824,-460.0,0.00019452,2]
[369045721,1751443865839,-3040.19,0.00019452,2]
[369045722,1751443865853,-5322.34,0.00019452,2]
[369045723,1751443865864,-460.0,0.00019452,2]
[369045724,1751443865878,-532.43,0.00019452,2]
[369045725,1751443865890,-882.43,0.00019452,2]
[369045726,1751443865905,-635.2,0.00019452,2]
[369045727,1751443865919,-460.0,0.00019452,2]
[369045728,1751443865934,-600.73,0.00019452,2]
[369045729,1751443865949,-460.0,0.00019452,2]
[369045730,1751443865964,-460.0,0.00019452,2]
[369045731,1751443865975,-460.0,0.00019452,2]
[369045732,1751443865991,-500.1,0.00019452,2]
[369045733,1751443866005,-881.02,0.00019452,2]
[369045734,1751443866021,-623.2,0.00019452,2]
[369045735,1751443866034,-460.0,0.00019452,2]
[369045736,1751443866045,-1471.72,0.00019452,2]
[369045737,1751443866058,-934.62,0.00019452,2]
[369045738,1751443866071,-1564.84,0.00019452,2]
[369045739,1751443866082,-2631.81,0.00019452,2]
[369045740,1751443866094,-460.0,0.00019452,2]
[369045741,1751443866106,-460.0,0.00019452,2]
[369045742,1751443866118,-260.064568,0.00019452,2]
[369045743,1751443866130,-3305.11,0.00019452,2]
[369045744,1751443866142,-2728.27,0.00019452,2]
[369045745,1751443866155,-849.36,0.00019452,2]
[369045746,1751443866167,-460.0,0.00019452,2]
[369045747,1751443866179,-460.0,0.00019452,2]
[369045748,1751443866192,-615.95,0.00019452,2]
[369045749,1751443866204,-845.22,0.00019452,2]
[369045750,1751443866216,-594.16,0.00019452,2]
[369045751,1751443866229,-151.0,0.00019452,2]
[369045752,1751443866241,-515.26,0.00019452,2]
[369045753,1751443866253,-722.43,0.00019452,2]